Cogmind - Beta 14 @@@ ROGUE MODE // 2024.10.06 @ 13:02:42 Player: SLUGGY Result: Destroyed by G-34 Mercenary with Small Laser Performance ------------- Evolutions (0) 0 Regions Visited (1) 200 Robots Destroyed (15) 75 Value Destroyed (272) 272 Prototype IDs (0) 0 Alien Tech Used (0) 0 Bonus (0) 0 TOTAL SCORE: 547 Bonus ------- None Cogmind --------- Core Integrity 0/250 Matter 300/300 Energy 100/100 System Corruption 0% Temperature Cool (6) Movement Core (350) Ox6 Location -10/Materials Parts ------- > --- POWER (1) -------- (None) > --- PROPULSION (2) --- (None) > --- UTILITY (2) ------ Large Storage Unit > --- WEAPON (2) ------- (None) > --- INVENTORY (15) --- Hover Unit Hover Unit Heat Sink Visual Processing Unit Improved Terrain Scanner Core Shielding Power Shielding Light Armor Plating Light Assault Rifle Datajack Peak State ------------ > --- POWER ------------ Light Ion Engine > --- PROPULSION ------- Light Treads Light Treads > --- UTILITY ---------- Small Storage Unit Improved Terrain Scanner > --- WEAPON ----------- EM Pulse Gun Assault Rifle > --- INVENTORY -------- Light Ion Engine Light Assault Rifle [Rating: 9] Favorites ----------- Power Light Ion Engine Engine Light Ion Engine Propulsion Light Treads Treads Light Treads Utility Large Storage Unit Device Improved Terrain Scanner Storage Large Storage Unit Protection Core Shielding Weapon Assault Rifle Energy Gun EM Pulse Gun Ballistic Gun Assault Rifle Build | -11 -10 ------- Run | Yrd Mat Slots Evolved . | . . Power . | . . Propulsion . | . . Utility . | . . Weapon . | . . Parts Attached 12 | 8 4 Power 2 | 1 1 Engine 2 | 1 1 Core . | . . Reactor . | . . Propulsion 2 | 2 . Treads 2 | 2 . Leg . | . . Wheel . | . . Hover . | . . Flight . | . . Utility 4 | 2 2 Device 1 | 1 . Storage 2 | 1 1 Processor . | . . Hackware . | . . Protection 1 | . 1 Artifact . | . . Weapon 4 | 3 1 Energy Gun 2 | 1 1 Energy Cannon . | . . Ballistic Gun 2 | 2 . Ballistic Cannon . | . . Launcher . | . . Special Weapon . | . . Impact Weapon . | . . Slashing Weapon . | . . Piercing Weapon . | . . Special Melee Weapon . | . . Unidentified Prototypes . | . . Parts Lost 8 | . 8 Power 2 | . 2 Propulsion 2 | . 2 Utility 1 | . 1 Weapon 3 | . 3 Highest Loss Streak 6 | . 6 To Critical Strikes . | . . Average Slot Usage (%) 92 | . 92 Engine 12 | . 12 Treads 24 | . 24 Storage 14 | . 14 Protection 13 | . 13 Energy Gun 12 | . 12 Ballistic Gun 12 | . 12 Peak Build Rating 9 | 9 9 Average Rating 6 | 5 7 On Entrance 4 | . 9 Naked Turns . | . . Heaviest Build 28 | 13 28 Greatest Support 40 | 40 40 Greatest Overweight (x) 8 | 2 8 Average Overweight (x) . | . . Largest Inventory Capacity 15 | 8 15 Average Capacity 13 | 7 14 Most Carried 12 | 6 12 Average Carried 7 | 2 7 Final Capacity 15 | 8 15 Final Carried 10 | 2 10 Class Distribution -------------------- 100% | Mutant Dominant Class ---------------- Mutant | -10/Materials Resources | -11 -10 ----------- Run | Yrd Mat Matter Collected 464 | 233 231 Remotely . | . . Salvage Created 400 | 85 315 Parts 26 | 5 21 Haulers Intercepted . | . . Recyclers Shooed . | . . Parts Field Recycled . | . . Retrieved Matter . | . . Parts Self-Destructed . | . . Prevented . | . . Kills | -11 -10 ------- Run | Yrd Mat Combat Hostiles Destroyed 8 | . 8 Guns 8 | . 8 Classes Destroyed 7 | 2 5 Worker 2 | . 2 Tunneler 1 | 1 . Recycler 1 | 1 . Operator 1 | . 1 Watcher 2 | . 2 Swarmer 4 | . 4 Grunt 4 | . 4 Best Kill Streak 3 | 2 3 Combat Bots Only 3 | . 3 Max Kills in Single Turn 1 | 1 1 Gunslinging . | . . Exploded . | . . Melee . | . . Uniques/NPCs Destroyed . | . . Combat | -11 -10 -------- Run | Yrd Mat Hostile Shots Fired 163 | . 163 Missed 52 | . 52 Damage Taken 1036 | . 1036 Core 257 | . 257 Absorbed by Shields . | . . Redirected to Shielding 50 | . 50 Core Remaining (%) 100 | 100 . Volleys Fired 71 | 4 67 Largest 2 | 2 2 Hottest 70 | 60 70 Shots Fired 120 | 8 112 Gun 120 | 8 112 Cannon . | . . Launcher . | . . Special . | . . Kinetic 61 | 4 57 Thermal 25 | . 25 Explosive . | . . Electromagnetic 34 | 4 30 Robot Hit Streak 5 | 3 5 Robot Miss Streak 4 | 1 4 Penetration Max . | . . Secondary Targets . | . . Shots Hit Robots 59 | 5 54 Core Hits 24 | 3 21 Critical Kills 1 | . 1 Critical Parts Destroyed . | . . Critical Strikes 4 | . 4 Burn 2 | . 2 Destroy 1 | . 1 Corrupt 1 | . 1 Melee Attacks . | . . Impact . | . . Slashing . | . . Piercing . | . . Sneak Attacks . | . . Combat Hostiles . | . . Follow-up Attacks . | . . Damage Inflicted 877 | 61 816 Guns 835 | 61 774 Cannons . | . . Explosions 41 | . 41 Melee . | . . Ramming 1 | . 1 Kinetic 409 | 33 376 Thermal 202 | . 202 Explosive . | . . Electromagnetic 265 | 28 237 Impact . | . . Slashing . | . . Piercing . | . . Highest Corruption . | . . Average Corruption . | . . Corruption Purged . | . . Corruption Blocked . | . . Overload Shots . | . . Overflow Damage 11 | . 11 Projectiles . | . . Explosions 11 | . 11 Melee . | . . Knockbacks . | . . Impact . | . . Kinetic . | . . Secondary . | . . Self-Inflicted Damage . | . . Shots . | . . Rammed 1 | . 1 Targets Rammed 1 | . 1 Kicked . | . . Crushed . | . . Highest Temperature 92 | . 92 Average Temperature 27 | . 27 Received Heat Transfer 249 | . 249 Siege Activations . | . . Robots Corrupted . | . . Combat Hostiles . | . . Parts Fried 1 | . 1 Impact Corruptions . | . . Robots Melted . | . . Combat Hostiles . | . . Parts Melted . | . . Heat Transferred 679 | . 679 Parts Sabotaged . | . . Parts Stolen . | . . Parts Stripped . | . . Power Chain Reactions 1 | . 1 Alert | -11 -10 ------- Run | Yrd Mat Peak Influence 258 | 10 258 Initial 6 | . 6 Average 119 | 5 139 Maximum Alert Level 1 | . 1 Low Security (%) 80 | 100 76 Level 1 19 | . 23 Level 2 . | . . Level 3 . | . . Level 4 . | . . Level 5 . | . . High Security . | . . Max Security . | . . Squads Dispatched 3 | . 3 Investigation . | . . Extermination . | . . Reinforcement 3 | . 3 Assault . | . . Garrison . | . . Intercept . | . . Searches Triggered . | . . Construction Impeded . | . . Haulers Reinforced . | . . Active Scanning Responses . | . . Cargo Convoy Interrupts . | . . Stealth | -11 -10 --------- Run | Yrd Mat Distress Signals . | . . Communications Jammed . | . . Distress Signals . | . . Times Spotted 21 | . 21 Peak Tracking Total 6 | . 6 Tactical Retreats 3 | . 3 Traps | -11 -10 ------- Run | Yrd Mat Traps Triggered . | . . Indirectly . | . . Trap Hack Attempts . | . . Triggered . | . . Disarmed . | . . Reprogrammed . | . . Reused . | . . Traps Extracted . | . . Installed . | . . Triggered . | . . Machines | -11 -10 ---------- Run | Yrd Mat Machines Disabled 2 | . 2 Max in Single Turn 1 | . 1 Machines Repaired . | . . Machines Dismantled . | . . Machines Sabotaged . | . . Overloaded Fab Kills . | . . Hacking | -11 -10 --------- Run | Yrd Mat Machines Accessed . | . . Terminals . | . . Fabricators . | . . Repair Stations . | . . Recycling Units . | . . Scanalyzers . | . . Garrison Access . | . . Total Hacks . | . . Successful . | . . Failed . | . . Catastrophic . | . . Database Lockouts . | . . Manual . | . . Terminals . | . . Fabricators . | . . Repair Stations . | . . Recycling Units . | . . Scanalyzers . | . . Garrison Access . | . . Terminal Hacks . | . . Fabricator Hacks . | . . Repair Station Hacks . | . . Recycling Unit Hacks . | . . Scanalyzer . | . . Garrison Access Hacks . | . . Unauthorized Hacks . | . . Terminals . | . . Fabricators . | . . Repair Stations . | . . Recycling Units . | . . Scanalyzers . | . . Garrison Access . | . . Data Cores Recovered . | . . Used . | . . Hacking Detections . | . . Full Trace Events . | . . Feedback Events . | . . Feedback Blocked . | . . Robot Schematics Acquired . | . . Robots Built . | . . Authchips . | . . Time . | . . Total Robot Build Rating . | . . Part Schematics Acquired . | . . Parts Built . | . . Authchips . | . . Time . | . . Total Part Build Rating . | . . Parts Repaired . | . . Time . | . . Parts Recycled . | . . Recycled Matter . | . . Retrieved Matter . | . . Retrieved Components . | . . Parts Scanalyzed . | . . Part Schematics Acquired . | . . Parts Damaged . | . . Bothacking | -11 -10 ------------ Run | Yrd Mat Used RIF Installer . | . . Robots Hacked . | . . Non-combat . | . . Combat . | . . Robot Hacks Applied . | . . Relay Couplers Released . | . . Fabnet Peak Effective % . | . . Robots Rewired . | . . Allies Hacked . | . . Hacks Repelled . | . . Allies | -11 -10 -------- Run | Yrd Mat Total Allies . | . . Largest Group . | . . Highest-Rated Group . | . . Highest-Rated Ally . | . . Total Orders . | . . Ally Attacks . | . . Total Damage . | . . Kills . | . . Allies Corrupted . | . . Allies Melted . | . . Intel | -11 -10 ------- Run | Yrd Mat Robot Analysis Total . | . . Derelict Logs Recovered . | . . Drone Launches . | . . Drone Recoveries . | . . Exploration | -11 -10 ------------- Run | Yrd Mat Turns Passed 650 | 99 551 Spaces Moved 266 | 60 206 Core 35 | 28 7 Treads 231 | 32 199 Legs . | . . Wheels . | . . Hover . | . . Flight . | . . Fastest Speed 50 | 50 160 Average Speed 159 | 118 170 Slowest Speed 450 | 160 450 Overloaded Moves . | . . Propulsion Burnouts . | . . Robots Hopped . | . . Cave-ins Triggered . | . . Exploration Rate (%) 21 | 4 38 Regions Visited 1 Branch Regions . Pre-discovered Areas . | . . Known Exits Taken . | . . Unknown Exits Taken 1 | 1 . Scrap Searched . | . . Spaces Dug . | . . Terrain Destroyed 17 | . 17 Melee . | . . Projectile . | . . AOE 17 | . 17 Terrain Rammed . | . . Walls Destroyed . | . . Machines Disabled . | . . Actions | -11 -10 --------- Run | Yrd Mat Total 369 | 79 290 Wait . | . . Move 265 | 59 206 Hop . | . . Pick Up 18 | 7 11 Fast Attach 2 | 2 . Attach 8 | 6 2 Detach 1 | 1 . Swap 2 | . 2 Drop 1 | . 1 Fire 71 | 4 67 Melee . | . . Ram 1 | . 1 Kick . | . . Crush . | . . Escape Stasis . | . . Rewire . | . . Trap . | . . Miscellaneous . | . . Route ------- -11/Scrapyard -10/Materials History --------- Turn | Location | Event 3 | -11/Scrapyard | Discovered new exit (range 15) 100 | -11/Scrapyard | Entered Materials 304 | -10/Materials | Build established: Mutant 615 | -10/Materials | Core integrity fell below 50% 640 | -10/Materials | Core integrity fell below 20% 651 | -10/Materials | Destroyed by G-34 Mercenary with Small Laser Last Messages --------------- 00560_ ALERT: Hostiles spotted, dispatching reinforcements to Terminal M002. 00560_ O-16 Technician locks terminal. 00567_ Lgt. Treads destroyed. 00581_ Destroyed Flight Unit. 00584_ S-10 Pest suffers critical hit (Burn). 00587_ Assault Rifle destroyed. 00589_ S-10 Pest suffers critical hit (Burn). 00589_ S-10 Pest destroyed. 00592_ K-01 Serf collects debris. 00608_ K-01 Serf destroyed. 00609_ R-06 Scavenger collects Wheel. 00611_ K-01 Serf collects debris. 00611_ Lgt. Treads destroyed. 00615_ K-01 Serf collects debris. 00616_ Lgt. Ion Engine destroyed. 00622_ K-01 Serf collects debris. 00632_ Med. Laser destroyed. 00638_ Slammed into S-10 Pest. 00651_ Core Shielding destroyed. Map ----- +----------------------------------------------------+ | ?????????????????????????????????????????????????? | | ?????????????????????????????????????????????????? | | ?????????????????? ??????????? #????????????????? | | ?????????????????? ?????????? +????????????????? | | ?????????????????? ????????? #????????????????? | | ????????????#######+######### #????????????????? | | ????????????? #????????????????? | | ?????????????? ^ #????????????????? | | ??????????????? "T" #????????????????? | | ????????????????# #????????????????? | | ????????????????# ^ ^ +????????????????? | | ????????????????# ^ % #????????????????? | | ????????????????# ^ #????????????????? | | ????????????????# ^ #????????????????? | | ????????????????# k#????????????????????? | | ????????????????## """ k#??########??????????? | | ????############## """ #?? #??????????? | | ????# # """ #? #??????????? | | ????#[ """ """ # # ???????????? | | ????# """ """ # # ?????????????? | | ????# """ """ # % + """ ???????????????? | | ????# ! % # # ???????????????????? | | ????##########+##########gsr#????????????????????? | | ????????????# # # s #????????????????????? | | ????????????# + # #????????????????????? | | ????????????# # /@ #????????????????????? | | ????????????# # """ # #????????????????????? | | ????????????# # """ # #????????????????????? | | ????????????# # """ # #????????????????????? | | ????????????# # # ###########??????????? | | ????????????# ! # # # #??????????? | | ????????????# %*######### # #??????????? | | ????????????# ######### + #??????????? | | ????????????# % # #??????????? | | ????????????# # #??????????? | | ????????????# # ! #??????????? | | ??#########?# ###### # #??????????? | | ??# ?# #????# # #??????????? | | ??# # #????# ## ########??????????? | | ??# # #????# ## ##########?????? | | ??? """ " #????# # #????? | | ??? """ # #????# #????? | | ????"Y" """ # #????# #????? | | ??????" ?# #????# #????? | | ????? ?# #????#### #????? | | ????######?## #???????# #????? | | ?????????#??# #???????# + #????? | | ??????????#?# #?#?????# * % #? ?????? | | ????????????# #???????# #?? ??????? | | ????????????# #????#??# "" #????###??????? | +----------------------------------------------------+ Best States ------------- Heat Dissipation 25 Energy Generation 10 Energy Capacity 125 Matter Stores 300 Matter Capacity 300 Sight Range 16 Terrain Scan Range 16 Terrain Scan Density 10 Core Shielding 20 Evasion (%) 50 Recoil Reduction 2 Item Schematics ----------------- None Robot Schematics ------------------ None Fabricated ------------ Nothing Alien Tech Used ----------------- None Achievements -------------- None Challenges ------------ None Game ------ Seed TerrainAssembledGravjet Manual? 0 Play Time 00:07:10 Cumulative 20.3 hours Start 2024.10.06 @ 12:56:12 End 2024.10.06 @ 13:02:42 Sessions 1 Manual Loads 0 Difficulty Rogue Special Mode None Game No. 38 Rogue 38 Adventurer 0 Explorer 0 Win Type - Total 0 Types 0/0/0/0/0/0/0/0/0 Lore% 13 Gallery% 22 Achievement% 22 Wizard Run 0 Options --------- Layout 0 ASCII 0 Keyboard 0 Movement Mouse Keybinds 0 Fullscreen 1 Font 24/Smallcaps Map View 76x50 Zoom Use 0% Tactical HUD 1 Map Filters NONE Filters NONE Steam 1 RUN: eb4e8e02-2bea-4763-a86b-862197ddd0cc